{"text_format":"1","workbook":"xlsx","n_sheets":4,"sheets":["Доходы","Расходы","Источники","_params"],"not_rendered":{"charts":0,"images":0,"macros":0,"external_links":0,"defined_names":28,"comments":0,"pivot_tables":0},"unopened":[],"bounds":{"document_bytes":16777216,"sheet_cells":100000,"rows_first":2000,"rows_last":500,"rows_between":2000,"halvings":0,"cell_chars":16384,"cell_head_chars":4096},"cells_cut":0,"cells_raw":0,"read":"whole","date_system":"1900"}

{"sheet":"Доходы","index":0,"n_rows":84,"n_cols":6,"rows_kept":84,"cut":false,"hidden":false,"merged":[[9,0,9,3],[0,0,0,3],[3,0,3,3],[1,0,1,3],[5,1,5,3],[6,1,6,3],[10,2,16,2],[10,0,16,0],[10,5,16,5],[10,4,16,4],[10,1,16,1],[10,3,16,3]]}
[null,null,null,null,"Приложение к проекту решения"]
["ОТЧЕТ ОБ ИСПОЛНЕНИИ БЮДЖЕТА ОБ ИСПОЛНЕНИИ БЮДЖЕТА ГЛАВНОГО РАСПОРЯДИТЕЛЯ, РАСПОРЯДИТЕЛЯ, ПОЛУЧАТЕЛЯ БЮДЖЕТНЫХ СРЕДСТВ, ГЛАВНОГО АДМИНИСТРАТОРА, АДМИНИСТРАТОРА ИСТОЧНИКОВ ФИНАНСИРОВАНИЯ ДЕФИЦИТА БЮДЖЕТА, ГЛАВНОГО АДМИНИСТРАТОРА, АДМИНИСТРАТОРА ДОХОДОВ БЮДЖЕТА",null,null,null,null,"КОДЫ"]
[null,null,null,null,"  Форма по ОКУД","0503127"]
["на 01.01.2018 г.",null,null,null,"                   Дата","01.01.2018"]
[null,null,null,null,"             по ОКПО","04095581"]
["Главный распорядитель, распорядитель, получатель бюджетных средств, главный администратор, администратор источников финансирования дефицита бюджета, главного администратора, администратора доходов бюджета","Администрация Большеулуйского сельсовета",null,null,"    Глава по БК","807"]
["Наименование публично-правового образования:","Большой Улуй",null,null,"по ОКТМО","04611407000"]
["Периодичность: годовая"]
["Единица измерения: руб.",null,null,null,"             по ОКЕИ","383"]
["                                 1. Доходы бюджета"]
[" Наименование показателя","Код строки","Код дохода по бюджетной классификации","Утвержденные бюджетные назначения","Исполнено","Неисполненные назначения"]
[]
[]
[]
[]
[]
[]
[1,2,3,"4","5","6"]
["Доходы бюджета - всего","010","X",80136914.519999996,78742775.159999996,{"$f":"IF(OR(D19=\"-\",IF(E19=\"-\",0,E19)>=IF(D19=\"-\",0,D19)),\"-\",IF(D19=\"-\",0,D19)-IF(E19=\"-\",0,E19))","v":1394139.3599999994}]
["в том числе:"]
["НАЛОГОВЫЕ И НЕНАЛОГОВЫЕ ДОХОДЫ","010","000 10000000000000000",73530510.519999996,72583435.930000007,{"$f":"IF(OR(D21=\"-\",IF(E21=\"-\",0,E21)>=IF(D21=\"-\",0,D21)),\"-\",IF(D21=\"-\",0,D21)-IF(E21=\"-\",0,E21))","v":947074.58999998868}]
["НАЛОГИ НА ПРИБЫЛЬ, ДОХОДЫ","010","182 10100000000000000",39710800,38896338.659999996,814461.34000000358]
["Налог на доходы физических лиц","010","182 10102000010000110",39710800,38896338.659999996,814461.34000000358]
["Налог на доходы физических лиц с доходов, источником которых является налоговый агент, за исключением доходов, в отношении которых исчисление и уплата налога осуществляются в соответствии со статьями 227, 2271 и 228 Налогового кодекса Российской Федерации","010","182 10102010010000110",39700000,38885583.340000004,814416.65999999642]
["Налог на доходы физических лиц с доходов, источником которых является налоговый агент, за исключением доходов, в отношении которых исчисление и уплата налога осуществляются в соответствии со статьями 227, 227.1 и 228 Налогового кодекса Российской Федерации (сумма платежа (перерасчеты, недоимка и задолженность по соответствующему платежу, в том числе по отмененному)","010","182 10102010011000110","-",38790018.969999999,"-"]
["Налог на доходы физических лиц с доходов, источником которых является налоговый агент, за исключением доходов, в отношении которых исчисление и уплата налога осуществляются в соответствии со статьями 227, 227.1 и 228 Налогового кодекса Российской Федерации (пени по соответствующему платежу)","010","182 10102010012100110","-",46632.56,"-"]
["Налог на доходы физических лиц с доходов, источником которых является налоговый агент, за исключением доходов, в отношении которых исчисление и уплата налога осуществляются в соответствии со статьями 227, 227.1 и 228 Налогового кодекса Российской Федерации (суммы денежных взысканий (штрафов) по соответствующему платежу согласно законодательству Российской Федерации)","010","182 10102010013000110","-",48934.07,"-"]
["Налог на доходы физических лиц с доходов, источником которых является налоговый агент, за исключением доходов, в отношении которых исчисление и уплата налога осуществляются в соответствии со статьями 227, 227.1 и 228 Налогового кодекса Российской Федерации (прочие поступления)","010","182 10102010014000110","-",-2.2599999999999998,"-"]
["Налог на доходы физических лиц с доходов, полученных от осуществления деятельности физическими лицами, зарегистрированными в качестве индивидуальных предпринимателей, нотариусов, занимающихся частной практикой, адвокатов, учредивших адвокатские кабинеты, и других лиц, занимающихся частной практикой в соответствии со статьей 227 Налогового кодекса Российской Федерации","010","182 10102020010000110",3300,3287.67,12.329999999999927]
["Налог на доходы физических лиц с доходов, полученных от осуществления деятельности физическими лицами, зарегистрированными в качестве индивидуальных предпринимателей, нотариусов, занимающихся частной практикой, адвокатов, учредивших адвокатские кабинеты, и других лиц, занимающихся частной практикой в соответствии со статьей 227 Налогового кодекса Российской Федерации (сумма платежа (перерасчеты, недоимка и задолженность по соответствующему платежу, в том числе по отмененному)","010","182 10102020011000110","-",3060.7,"-"]
["Налог на доходы физических лиц с доходов, полученных от осуществления деятельности физическими лицами, зарегистрированными в качестве индивидуальных предпринимателей, нотариусов, занимающихся частной практикой, адвокатов, учредивших адвокатские кабинеты, и других лиц, занимающихся частной практикой в соответствии со статьей 227 Налогового кодекса Российской Федерации (пени по соответствующему платежу)","010","182 10102020012100110","-",8.6300000000000008,"-"]
["Налог на доходы физических лиц с доходов, полученных от осуществления деятельности физическими лицами, зарегистрированными в качестве индивидуальных предпринимателей, нотариусов, занимающихся частной практикой, адвокатов, учредивших адвокатские кабинеты, и других лиц, занимающихся частной практикой в соответствии со статьей 227 Налогового кодекса Российской Федерации (суммы денежных взысканий (штрафов) по соответствующему платежу согласно законодательству Российской Федерации)","010","182 10102020013000110","-",218.34,"-"]
["Налог на доходы физических лиц с доходов, полученных физическими лицами в соответствии со статьей 228 Налогового кодекса Российской Федерации","010","182 10102030010000110",7500,7467.65,32.350000000000364]
["Налог на доходы физических лиц с доходов, полученных физическими лицами в соответствии со статьей 228 Налогового кодекса Российской Федерации (сумма платежа (перерасчеты, недоимка и задолженность по соответствующему платежу, в том числе по отмененному)","010","182 10102030011000110","-",6427.79,"-"]
["Налог на доходы физических лиц с доходов, полученных физическими лицами в соответствии со статьей 228 Налогового кодекса Российской Федерации (пени по соответствующему платежу)","010","182 10102030012100110","-",589.84,"-"]
["Налог на доходы физических лиц с доходов, полученных физическими лицами в соответствии со статьей 228 Налогового кодекса Российской Федерации (суммы денежных взысканий (штрафов) по соответствующему платежу согласно законодательству Российской Федерации)","010","182 10102030013000110","-",450.02,"-"]
["НАЛОГИ НА ТОВАРЫ (РАБОТЫ, УСЛУГИ), РЕАЛИЗУЕМЫЕ НА ТЕРРИТОРИИ РОССИЙСКОЙ ФЕДЕРАЦИИ","010","100 10300000000000000",311510.52,316563.26,"-"]
["Акцизы по подакцизным товарам (продукции), производимым на территории Российской Федерации","010","100 10302000010000110",311510.52,316563.26,"-"]
["Доходы от уплаты акцизов на дизельное топливо, подлежащие распределению между бюджетами субъектов Российской Федерации и местными бюджетами с учетом установленных дифференцированных нормативов отчислений в местные бюджеты","010","100 10302230010000110",115300,130075.59,"-"]
["Доходы от уплаты акцизов на моторные масла для дизельных и (или) карбюраторных (инжекторных) двигателей, подлежащие распределению между бюджетами субъектов Российской Федерации и местными бюджетами с учетом установленных дифференцированных нормативов отчислений в местные бюджеты","010","100 10302240010000110",1110.52,1320.5,"-"]
["Доходы от уплаты акцизов на автомобильный бензин, подлежащие распределению между бюджетами субъектов Российской Федерации и местными бюджетами с учетом установленных дифференцированных нормативов отчислений в местные бюджеты","010","100 10302250010000110",214600,210359.79,4240.2099999999919]
["Доходы от уплаты акцизов на прямогонный бензин, подлежащие распределению между бюджетами субъектов Российской Федерации и местными бюджетами с учетом установленных дифференцированных нормативов отчислений в местные бюджеты","010","100 10302260010000110",-19500,-25192.62,5692.619999999999]
["НАЛОГИ НА СОВОКУПНЫЙ ДОХОД","010","182 10500000000000000",8000,3620.68,4379.32]
["Единый сельскохозяйственный налог","010","182 10503000010000110",8000,3620.68,4379.32]
["Единый сельскохозяйственный налог","010","182 10503010010000110",8000,3620.68,4379.32]
["Единый сельскохозяйственный налог (сумма платежа (перерасчеты, недоимка и задолженность по соответствующему платежу, в том числе по отмененному)","010","182 10503010011000110","-",2025.48,"-"]
["Единый сельскохозяйственный налог (пени по соответствующему платежу)","010","182 10503010012100110","-",1595.2,"-"]
["НАЛОГИ НА ИМУЩЕСТВО","010","182 10600000000000000",33264900,33112099.559999999,152800.44000000134]
["Налог на имущество физических лиц","010","182 10601000000000110",395200,414918.40000000002,"-"]
["Налог на имущество физических лиц, взимаемый по ставкам, применяемым к объектам налогообложения, расположенным в границах сельских поселений","010","182 10601030100000110",395200,414918.40000000002,"-"]
["Налог на имущество физических лиц, взимаемый по ставкам, применяемым к объектам налогообложения, расположенным в границах сельских поселений (сумма платежа (перерасчеты, недоимка и задолженность по соответствующему платежу, в том числе по отмененному)","010","182 10601030101000110","-",409850.43,"-"]
["Налог на имущество физических лиц, взимаемый по ставкам, применяемым к объектам налогообложения, расположенным в границах сельских поселений (пени по соответствующему платежу)","010","182 10601030102100110","-",5067.97,"-"]
["Земельный налог","010","182 10606000000000110",32869700,32697181.16,{"$f":"IF(OR(D53=\"-\",IF(E53=\"-\",0,E53)>=IF(D53=\"-\",0,D53)),\"-\",IF(D53=\"-\",0,D53)-IF(E53=\"-\",0,E53))","v":172518.83999999985}]
["Земельный налог с организаций","010","182 10606030000000110",32539700,32435014.640000001,104685.3599999994]
["Земельный налог с организаций, обладающих земельным участком, расположенным в границах сельских поселений","010","182 10606033100000110",32539700,32435014.640000001,104685.3599999994]
["Земельный налог с физических лиц","010","182 10606040000000110",330000,262166.52,67833.479999999981]
["Земельный налог с физических лиц, обладающих земельным участком, расположенным в границах сельских поселений","010","182 10606043100000110",330000,262166.52,67833.479999999981]
["ДОХОДЫ ОТ ИСПОЛЬЗОВАНИЯ ИМУЩЕСТВА, НАХОДЯЩЕГОСЯ В ГОСУДАРСТВЕННОЙ И МУНИЦИПАЛЬНОЙ СОБСТВЕННОСТИ","010","807 11100000000000000",180000,199513.77,"-"]
["Прочие доходы от использования имущества и прав, находящихся в государственной и муниципальной собственности (за исключением имущества бюджетных и автономных учреждений, а также имущества государственных и муниципальных унитарных предприятий, в том числе казенных)","010","807 11109000000000120",180000,199513.77,"-"]
["Прочие поступления от использования имущества, находящегося в государственной и муниципальной собственности (за исключением имущества бюджетных и автономных учреждений, а также имущества государственных и муниципальных унитарных предприятий, в том числе казенных)","010","807 11109040000000120",180000,199513.77,"-"]
["Прочие поступления от использования имущества, находящегося в собственности сельских поселений (за исключением имущества муниципальных бюджетных и автономных учреждений, а также имущества муниципальных унитарных предприятий, в том числе казенных)","010","807 11109045100000120",180000,199513.77,"-"]
["ДОХОДЫ ОТ ПРОДАЖИ МАТЕРИАЛЬНЫХ И НЕМАТЕРИАЛЬНЫХ АКТИВОВ","010","807 11400000000000000",51300,51300,"-"]
["Доходы от продажи земельных участков, находящихся в государственной и муниципальной собственности","010","807 11406000000000430",51300,51300,"-"]
["Доходы от продажи земельных участков, государственная собственность на которые разграничена (за исключением земельных участков бюджетных и автономных учреждений)","010","807 11406020000000430",51300,51300,"-"]
["Доходы от продажи земельных участков, находящихся в собственности сельских поселений (за исключением земельных участков муниципальных бюджетных и автономных учреждений)","010","807 11406025100000430",51300,51300,"-"]
["ШТРАФЫ, САНКЦИИ, ВОЗМЕЩЕНИЕ УЩЕРБА","010","807 11600000000000000",4000,4000,"-"]
["Денежные взыскания (штрафы), установленные законами субъектов Российской Федерации за несоблюдение муниципальных правовых актов","010","807 11651000020000140",4000,4000,"-"]
["Денежные взыскания (штрафы), установленные законами субъектов Российской Федерации за несоблюдение муниципальных правовых актов, зачисляемые в бюджеты поселений","010","807 11651040020000140",4000,4000,"-"]
["БЕЗВОЗМЕЗДНЫЕ ПОСТУПЛЕНИЯ","010","807 20000000000000000",6606404,6159339.2300000004,447064.76999999955]
["БЕЗВОЗМЕЗДНЫЕ ПОСТУПЛЕНИЯ ОТ ДРУГИХ БЮДЖЕТОВ БЮДЖЕТНОЙ СИСТЕМЫ РОССИЙСКОЙ ФЕДЕРАЦИИ","010","807 20200000000000000",6744552,6297487.2300000004,447064.76999999955]
["Субсидии бюджетам бюджетной системы Российской Федерации (межбюджетные субсидии)","010","807 20220000000000151",6304166,5898037.3300000001,406128.66999999993]
["Прочие субсидии","010","807 20229999000000151",6304166,5898037.3300000001,406128.66999999993]
["Прочие субсидии бюджетам сельских поселений","010","807 20229999100000151",6304166,5898037.3300000001,406128.66999999993]
["Субвенции бюджетам бюджетной системы Российской Федерации","010","807 20230000000000151",246686,231664.91,15021.089999999997]
["Субвенции местным бюджетам на выполнение передаваемых полномочий субъектов Российской Федерации","010","807 20230024000000151",12800,12800,"-"]
["Субвенции бюджетам сельских поселений на выполнение передаваемых полномочий субъектов Российской Федерации","010","807 20230024100000151",12800,12800,"-"]
["Субвенции бюджетам на осуществление первичного воинского учета на территориях, где отсутствуют военные комиссариаты","010","807 20235118000000151",233886,218864.91,15021.089999999997]
["Субвенции бюджетам сельских поселений на осуществление первичного воинского учета на территориях, где отсутствуют военные комиссариаты","010","807 20235118100000151",233886,218864.91,15021.089999999997]
["Иные межбюджетные трансферты","010","807 20240000000000151",193700,167784.99,25915.010000000009]
["Прочие межбюджетные трансферты, передаваемые бюджетам","010","807 20249999000000151",193700,167784.99,25915.010000000009]
["Прочие межбюджетные трансферты, передаваемые бюджетам сельских поселений","010","807 20249999100000151",193700,167784.99,25915.010000000009]
["ВОЗВРАТ ОСТАТКОВ СУБСИДИЙ, СУБВЕНЦИЙ И ИНЫХ МЕЖБЮДЖЕТНЫХ ТРАНСФЕРТОВ, ИМЕЮЩИХ ЦЕЛЕВОЕ НАЗНАЧЕНИЕ, ПРОШЛЫХ ЛЕТ","010","807 21900000000000000",-138148,-138148,"-"]
["Возврат остатков субсидий, субвенций и иных межбюджетных трансфертов, имеющих целевое назначение, прошлых лет из бюджетов сельских поселений","010","807 21900000100000151",-138148,-138148,"-"]
["Возврат прочих остатков субсидий, субвенций и иных межбюджетных трансфертов, имеющих целевое назначение, прошлых лет из бюджетов сельских поселений","010","807 21960010100000151",-138148,-138148,"-"]

{"sheet":"Расходы","index":1,"n_rows":179,"n_cols":6,"rows_kept":179,"cut":false,"hidden":false,"merged":[[3,5,8,5],[3,2,8,2],[1,0,1,3],[3,0,10,0],[3,1,10,1],[3,3,10,3],[3,4,8,4]]}
[]
["                          2. Расходы бюджета",null,null,null,null,"Форма 0503127  с.2"]
[]
[" Наименование показателя","Код строки","Код расхода по бюджетной классификации","Утвержденные бюджетные назначения","Исполнено","Неисполненные назначения"]
[]
[]
[]
[]
[]
[]
[]
[1,2,3,"4","5","6"]
["Расходы бюджета - всего","200","x",80579122.379999995,77286028.319999993,{"$f":"IF(OR(D13=\"-\",IF(E13=\"-\",0,E13)>=IF(D13=\"-\",0,D13)),\"-\",IF(D13=\"-\",0,D13)-IF(E13=\"-\",0,E13))","v":3293094.0600000024}]
["в том числе:"]
["ОБЩЕГОСУДАРСТВЕННЫЕ ВОПРОСЫ","200","000 0100 0000000000 000 ",6712758.4900000002,5986505.1600000001,{"$f":"IF(OR(D15=\"-\",IF(E15=\"-\",0,E15)>=IF(D15=\"-\",0,D15)),\"-\",IF(D15=\"-\",0,D15)-IF(E15=\"-\",0,E15))","v":726253.33000000007}]
["Расходы на выплаты персоналу в целях обеспечения выполнения функций государственными (муниципальными) органами, казенными учреждениями, органами управления государственными внебюджетными фондами","200","000 0100 0000000000 100 ",3440364.36,3185399.13,254965.22999999998]
["Расходы на выплаты персоналу государственных (муниципальных) органов","200","000 0100 0000000000 120 ",3440364.36,3185399.13,254965.22999999998]
["Фонд оплаты труда государственных (муниципальных) органов","200","000 0100 0000000000 121 ",2605471.77,2389638.5,215833.27000000002]
["Иные выплаты персоналу государственных (муниципальных) органов, за исключением фонда оплаты труда","200","000 0100 0000000000 122 ",28000,25400,2600]
["Иные выплаты, за исключением фонда оплаты труда государственных (муниципальных) органов, лицам, привлекаемым согласно законодательству для выполнения отдельных полномочий","200","000 0100 0000000000 123 ",20000,15000,5000]
["Взносы по обязательному социальному страхованию на выплаты денежного содержания и иные выплаты работникам государственных (муниципальных) органов","200","000 0100 0000000000 129 ",786892.59,755360.63,31531.959999999963]
["Закупка товаров, работ и услуг для обеспечения государственных (муниципальных) нужд","200","000 0100 0000000000 200 ",1584294.13,1126753.47,457540.65999999992]
["Иные закупки товаров, работ и услуг для обеспечения государственных (муниципальных) нужд","200","000 0100 0000000000 240 ",1584294.13,1126753.47,457540.65999999992]
["Прочая закупка товаров, работ и услуг для обеспечения государственных (муниципальных) нужд","200","000 0100 0000000000 244 ",1584294.13,1126753.47,457540.65999999992]
["Межбюджетные трансферты","200","000 0100 0000000000 500 ",1568100,1568100,"-"]
["Иные межбюджетные трансферты","200","000 0100 0000000000 540 ",1568100,1568100,"-"]
["Иные бюджетные ассигнования","200","000 0100 0000000000 800 ",120000,106252.56,13747.440000000002]
["Уплата налогов, сборов и иных платежей","200","000 0100 0000000000 850 ",20000,6581.91,13418.09]
["Уплата прочих налогов, сборов","200","000 0100 0000000000 852 ",1600,1600,"-"]
["Уплата иных платежей","200","000 0100 0000000000 853 ",18400,4981.91,13418.09]
["Резервные средства","200","000 0100 0000000000 870 ",100000,99670.65,329.35000000000582]
["Функционирование высшего должностного лица субъекта Российской Федерации и муниципального образования","200","000 0102 0000000000 000 ",643410.28,572841.65,70568.63]
["Расходы на выплаты персоналу в целях обеспечения выполнения функций государственными (муниципальными) органами, казенными учреждениями, органами управления государственными внебюджетными фондами","200","000 0102 0000000000 100 ",643410.28,572841.65,70568.63]
["Расходы на выплаты персоналу государственных (муниципальных) органов","200","000 0102 0000000000 120 ",643410.28,572841.65,70568.63]
["Фонд оплаты труда государственных (муниципальных) органов","200","000 0102 0000000000 121 ",494140,441645.5,52494.5]
["Взносы по обязательному социальному страхованию на выплаты денежного содержания и иные выплаты работникам государственных (муниципальных) органов","200","000 0102 0000000000 129 ",149270.28,131196.15,18074.130000000005]
["Функционирование законодательных (представительных) органов государственной власти и представительных органов муниципальных образований","200","000 0103 0000000000 000 ",20000,15000,5000]
["Расходы на выплаты персоналу в целях обеспечения выполнения функций государственными (муниципальными) органами, казенными учреждениями, органами управления государственными внебюджетными фондами","200","000 0103 0000000000 100 ",20000,15000,5000]
["Расходы на выплаты персоналу государственных (муниципальных) органов","200","000 0103 0000000000 120 ",20000,15000,5000]
["Иные выплаты, за исключением фонда оплаты труда государственных (муниципальных) органов, лицам, привлекаемым согласно законодательству для выполнения отдельных полномочий","200","000 0103 0000000000 123 ",20000,15000,5000]
["Функционирование Правительства Российской Федерации, высших исполнительных органов государственной власти субъектов Российской Федерации, местных администраций","200","000 0104 0000000000 000 ",4557648.21,3907292.86,650355.35000000009]
["Расходы на выплаты персоналу в целях обеспечения выполнения функций государственными (муниципальными) органами, казенными учреждениями, органами управления государственными внебюджетными фондами","200","000 0104 0000000000 100 ",2776954.08,2597557.48,179396.60000000009]
["Расходы на выплаты персоналу государственных (муниципальных) органов","200","000 0104 0000000000 120 ",2776954.08,2597557.48,179396.60000000009]
["Фонд оплаты труда государственных (муниципальных) органов","200","000 0104 0000000000 121 ",2111331.77,1947993,163338.77000000002]
["Иные выплаты персоналу государственных (муниципальных) органов, за исключением фонда оплаты труда","200","000 0104 0000000000 122 ",28000,25400,2600]
["Взносы по обязательному социальному страхованию на выплаты денежного содержания и иные выплаты работникам государственных (муниципальных) органов","200","000 0104 0000000000 129 ",637622.31000000006,624164.48,13457.830000000075]
["Закупка товаров, работ и услуг для обеспечения государственных (муниципальных) нужд","200","000 0104 0000000000 200 ",1571494.13,1113953.47,{"$f":"IF(OR(D47=\"-\",IF(E47=\"-\",0,E47)>=IF(D47=\"-\",0,D47)),\"-\",IF(D47=\"-\",0,D47)-IF(E47=\"-\",0,E47))","v":457540.65999999992}]
["Иные закупки товаров, работ и услуг для обеспечения государственных (муниципальных) нужд","200","000 0104 0000000000 240 ",1571494.13,1113953.47,457540.65999999992]
["Прочая закупка товаров, работ и услуг для обеспечения государственных (муниципальных) нужд","200","000 0104 0000000000 244 ",1571494.13,1113953.47,457540.65999999992]
["Межбюджетные трансферты","200","000 0104 0000000000 500 ",189200,189200,"-"]
["Иные межбюджетные трансферты","200","000 0104 0000000000 540 ",189200,189200,"-"]
["Иные бюджетные ассигнования","200","000 0104 0000000000 800 ",20000,6581.91,13418.09]
["Уплата налогов, сборов и иных платежей","200","000 0104 0000000000 850 ",20000,6581.91,13418.09]
["Уплата прочих налогов, сборов","200","000 0104 0000000000 852 ",1600,1600,"-"]
["Уплата иных платежей","200","000 0104 0000000000 853 ",18400,4981.91,13418.09]
["Обеспечение деятельности финансовых, налоговых и таможенных органов и органов финансового (финансово-бюджетного) надзора","200","000 0106 0000000000 000 ",203500,203500,"-"]
["Межбюджетные трансферты","200","000 0106 0000000000 500 ",203500,203500,"-"]
["Иные межбюджетные трансферты","200","000 0106 0000000000 540 ",203500,203500,"-"]
["Резервные фонды","200","000 0111 0000000000 000 ",100000,99670.65,329.35000000000582]
["Иные бюджетные ассигнования","200","000 0111 0000000000 800 ",100000,99670.65,329.35000000000582]
["Резервные средства","200","000 0111 0000000000 870 ",100000,99670.65,329.35000000000582]
["Другие общегосударственные вопросы","200","000 0113 0000000000 000 ",1188200,1188200,"-"]
["Закупка товаров, работ и услуг для обеспечения государственных (муниципальных) нужд","200","000 0113 0000000000 200 ",12800,12800,"-"]
["Иные закупки товаров, работ и услуг для обеспечения государственных (муниципальных) нужд","200","000 0113 0000000000 240 ",12800,12800,"-"]
["Прочая закупка товаров, работ и услуг для обеспечения государственных (муниципальных) нужд","200","000 0113 0000000000 244 ",12800,12800,"-"]
["Межбюджетные трансферты","200","000 0113 0000000000 500 ",1175400,1175400,"-"]
["Иные межбюджетные трансферты","200","000 0113 0000000000 540 ",1175400,1175400,"-"]
["НАЦИОНАЛЬНАЯ ОБОРОНА","200","000 0200 0000000000 000 ",233886,218864.91,15021.089999999997]
["Расходы на выплаты персоналу в целях обеспечения выполнения функций государственными (муниципальными) органами, казенными учреждениями, органами управления государственными внебюджетными фондами","200","000 0200 0000000000 100 ",229100,214078.91,15021.089999999997]
["Расходы на выплаты персоналу государственных (муниципальных) органов","200","000 0200 0000000000 120 ",229100,214078.91,15021.089999999997]
["Фонд оплаты труда государственных (муниципальных) органов","200","000 0200 0000000000 121 ",175960,165031.45000000001,10928.549999999988]
["Взносы по обязательному социальному страхованию на выплаты денежного содержания и иные выплаты работникам государственных (муниципальных) органов","200","000 0200 0000000000 129 ",53140,49047.46,4092.5400000000009]
["Закупка товаров, работ и услуг для обеспечения государственных (муниципальных) нужд","200","000 0200 0000000000 200 ",4786,4786,"-"]
["Иные закупки товаров, работ и услуг для обеспечения государственных (муниципальных) нужд","200","000 0200 0000000000 240 ",4786,4786,"-"]
["Прочая закупка товаров, работ и услуг для обеспечения государственных (муниципальных) нужд","200","000 0200 0000000000 244 ",4786,4786,"-"]
["Мобилизационная и вневойсковая подготовка","200","000 0203 0000000000 000 ",233886,218864.91,15021.089999999997]
["Расходы на выплаты персоналу в целях обеспечения выполнения функций государственными (муниципальными) органами, казенными учреждениями, органами управления государственными внебюджетными фондами","200","000 0203 0000000000 100 ",229100,214078.91,15021.089999999997]
["Расходы на выплаты персоналу государственных (муниципальных) органов","200","000 0203 0000000000 120 ",229100,214078.91,15021.089999999997]
["Фонд оплаты труда государственных (муниципальных) органов","200","000 0203 0000000000 121 ",175960,165031.45000000001,{"$f":"IF(OR(D79=\"-\",IF(E79=\"-\",0,E79)>=IF(D79=\"-\",0,D79)),\"-\",IF(D79=\"-\",0,D79)-IF(E79=\"-\",0,E79))","v":10928.549999999988}]
["Взносы по обязательному социальному страхованию на выплаты денежного содержания и иные выплаты работникам государственных (муниципальных) органов","200","000 0203 0000000000 129 ",53140,49047.46,4092.5400000000009]
["Закупка товаров, работ и услуг для обеспечения государственных (муниципальных) нужд","200","000 0203 0000000000 200 ",4786,4786,"-"]
["Иные закупки товаров, работ и услуг для обеспечения государственных (муниципальных) нужд","200","000 0203 0000000000 240 ",4786,4786,"-"]
["Прочая закупка товаров, работ и услуг для обеспечения государственных (муниципальных) нужд","200","000 0203 0000000000 244 ",4786,4786,"-"]
["НАЦИОНАЛЬНАЯ БЕЗОПАСНОСТЬ И ПРАВООХРАНИТЕЛЬНАЯ ДЕЯТЕЛЬНОСТЬ","200","000 0300 0000000000 000 ",185648.37,185273.37,375]
["Закупка товаров, работ и услуг для обеспечения государственных (муниципальных) нужд","200","000 0300 0000000000 200 ",185648.37,185273.37,375]
["Иные закупки товаров, работ и услуг для обеспечения государственных (муниципальных) нужд","200","000 0300 0000000000 240 ",185648.37,185273.37,375]
["Прочая закупка товаров, работ и услуг для обеспечения государственных (муниципальных) нужд","200","000 0300 0000000000 244 ",185648.37,185273.37,375]
["Обеспечение пожарной безопасности","200","000 0310 0000000000 000 ",95648.37,95648.37,"-"]
["Закупка товаров, работ и услуг для обеспечения государственных (муниципальных) нужд","200","000 0310 0000000000 200 ",95648.37,95648.37,"-"]
["Иные закупки товаров, работ и услуг для обеспечения государственных (муниципальных) нужд","200","000 0310 0000000000 240 ",95648.37,95648.37,"-"]
["Прочая закупка товаров, работ и услуг для обеспечения государственных (муниципальных) нужд","200","000 0310 0000000000 244 ",95648.37,95648.37,"-"]
["Другие вопросы в области национальной безопасности и правоохранительной деятельности","200","000 0314 0000000000 000 ",90000,89625,375]
["Закупка товаров, работ и услуг для обеспечения государственных (муниципальных) нужд","200","000 0314 0000000000 200 ",90000,89625,375]
["Иные закупки товаров, работ и услуг для обеспечения государственных (муниципальных) нужд","200","000 0314 0000000000 240 ",90000,89625,375]
["Прочая закупка товаров, работ и услуг для обеспечения государственных (муниципальных) нужд","200","000 0314 0000000000 244 ",90000,89625,375]
["НАЦИОНАЛЬНАЯ ЭКОНОМИКА","200","000 0400 0000000000 000 ",9501819.7300000004,8983089.4000000004,518730.33000000007]
["Закупка товаров, работ и услуг для обеспечения государственных (муниципальных) нужд","200","000 0400 0000000000 200 ",9501819.7300000004,8983089.4000000004,518730.33000000007]
["Иные закупки товаров, работ и услуг для обеспечения государственных (муниципальных) нужд","200","000 0400 0000000000 240 ",9501819.7300000004,8983089.4000000004,518730.33000000007]
["Прочая закупка товаров, работ и услуг для обеспечения государственных (муниципальных) нужд","200","000 0400 0000000000 244 ",9501819.7300000004,8983089.4000000004,518730.33000000007]
["Дорожное хозяйство (дорожные фонды)","200","000 0409 0000000000 000 ",9501819.7300000004,8983089.4000000004,518730.33000000007]
["Закупка товаров, работ и услуг для обеспечения государственных (муниципальных) нужд","200","000 0409 0000000000 200 ",9501819.7300000004,8983089.4000000004,518730.33000000007]
["Иные закупки товаров, работ и услуг для обеспечения государственных (муниципальных) нужд","200","000 0409 0000000000 240 ",9501819.7300000004,8983089.4000000004,518730.33000000007]
["Прочая закупка товаров, работ и услуг для обеспечения государственных (муниципальных) нужд","200","000 0409 0000000000 244 ",9501819.7300000004,8983089.4000000004,518730.33000000007]
["ЖИЛИЩНО-КОММУНАЛЬНОЕ ХОЗЯЙСТВО","200","000 0500 0000000000 000 ",16946994.109999999,14914519.800000001,2032474.3099999987]
["Расходы на выплаты персоналу в целях обеспечения выполнения функций государственными (муниципальными) органами, казенными учреждениями, органами управления государственными внебюджетными фондами","200","000 0500 0000000000 100 ",1250097.6599999999,1189975.94,60121.719999999972]
["Расходы на выплаты персоналу казенных учреждений","200","000 0500 0000000000 110 ",1250097.6599999999,1189975.94,60121.719999999972]
["Фонд оплаты труда учреждений","200","000 0500 0000000000 111 ",960174.11,918836.28,41337.829999999958]
["Взносы по обязательному социальному страхованию на выплаты по оплате труда работников и иные выплаты работникам учреждений","200","000 0500 0000000000 119 ",289923.55,271139.65999999997,18783.890000000014]
["Закупка товаров, работ и услуг для обеспечения государственных (муниципальных) нужд","200","000 0500 0000000000 200 ",14296896.449999999,12358334.960000001,1938561.4899999984]
["Иные закупки товаров, работ и услуг для обеспечения государственных (муниципальных) нужд","200","000 0500 0000000000 240 ",14296896.449999999,12358334.960000001,1938561.4899999984]
["Закупка товаров, работ, услуг в целях капитального ремонта государственного (муниципального) имущества","200","000 0500 0000000000 243 ",66304,66304,{"$f":"IF(OR(D111=\"-\",IF(E111=\"-\",0,E111)>=IF(D111=\"-\",0,D111)),\"-\",IF(D111=\"-\",0,D111)-IF(E111=\"-\",0,E111))","v":"-"}]
["Прочая закупка товаров, работ и услуг для обеспечения государственных (муниципальных) нужд","200","000 0500 0000000000 244 ",14230592.449999999,12292030.960000001,1938561.4899999984]
["Капитальные вложения в объекты государственной (муниципальной) собственности","200","000 0500 0000000000 400 ",700000,700000,"-"]
["Бюджетные инвестиции","200","000 0500 0000000000 410 ",700000,700000,"-"]
["Бюджетные инвестиции на приобретение объектов недвижимого имущества в государственную (муниципальную) собственность","200","000 0500 0000000000 412 ",700000,700000,"-"]
["Иные бюджетные ассигнования","200","000 0500 0000000000 800 ",700000,666208.9,33791.099999999977]
["Субсидии юридическим лицам (кроме некоммерческих организаций), индивидуальным предпринимателям, физическим лицам - производителям товаров, работ, услуг","200","000 0500 0000000000 810 ",700000,666208.9,33791.099999999977]
["Иные субсидии юридическим лицам (кроме некоммерческих организаций), индивидуальным предпринимателям, физическим лицам - производителям товаров, работ, услуг","200","000 0500 0000000000 814 ",700000,666208.9,33791.099999999977]
["Жилищное хозяйство","200","000 0501 0000000000 000 ",1830004.18,1654893.06,175111.11999999988]
["Закупка товаров, работ и услуг для обеспечения государственных (муниципальных) нужд","200","000 0501 0000000000 200 ",1130004.18,954893.06,175111.11999999988]
["Иные закупки товаров, работ и услуг для обеспечения государственных (муниципальных) нужд","200","000 0501 0000000000 240 ",1130004.18,954893.06,175111.11999999988]
["Закупка товаров, работ, услуг в целях капитального ремонта государственного (муниципального) имущества","200","000 0501 0000000000 243 ",66304,66304,"-"]
["Прочая закупка товаров, работ и услуг для обеспечения государственных (муниципальных) нужд","200","000 0501 0000000000 244 ",1063700.18,888589.06,175111.11999999988]
["Капитальные вложения в объекты государственной (муниципальной) собственности","200","000 0501 0000000000 400 ",700000,700000,"-"]
["Бюджетные инвестиции","200","000 0501 0000000000 410 ",700000,700000,"-"]
["Бюджетные инвестиции на приобретение объектов недвижимого имущества в государственную (муниципальную) собственность","200","000 0501 0000000000 412 ",700000,700000,"-"]
["Коммунальное хозяйство","200","000 0502 0000000000 000 ",4120340,3691754.92,428585.08000000007]
["Закупка товаров, работ и услуг для обеспечения государственных (муниципальных) нужд","200","000 0502 0000000000 200 ",3420340,3025546.02,394793.98]
["Иные закупки товаров, работ и услуг для обеспечения государственных (муниципальных) нужд","200","000 0502 0000000000 240 ",3420340,3025546.02,394793.98]
["Прочая закупка товаров, работ и услуг для обеспечения государственных (муниципальных) нужд","200","000 0502 0000000000 244 ",3420340,3025546.02,394793.98]
["Иные бюджетные ассигнования","200","000 0502 0000000000 800 ",700000,666208.9,33791.099999999977]
["Субсидии юридическим лицам (кроме некоммерческих организаций), индивидуальным предпринимателям, физическим лицам - производителям товаров, работ, услуг","200","000 0502 0000000000 810 ",700000,666208.9,33791.099999999977]
["Иные субсидии юридическим лицам (кроме некоммерческих организаций), индивидуальным предпринимателям, физическим лицам - производителям товаров, работ, услуг","200","000 0502 0000000000 814 ",700000,666208.9,33791.099999999977]
["Благоустройство","200","000 0503 0000000000 000 ",9345892.2699999996,8189306.1799999997,1156586.0899999999]
["Закупка товаров, работ и услуг для обеспечения государственных (муниципальных) нужд","200","000 0503 0000000000 200 ",9345892.2699999996,8189306.1799999997,1156586.0899999999]
["Иные закупки товаров, работ и услуг для обеспечения государственных (муниципальных) нужд","200","000 0503 0000000000 240 ",9345892.2699999996,8189306.1799999997,1156586.0899999999]
["Прочая закупка товаров, работ и услуг для обеспечения государственных (муниципальных) нужд","200","000 0503 0000000000 244 ",9345892.2699999996,8189306.1799999997,1156586.0899999999]
["Другие вопросы в области жилищно-коммунального хозяйства","200","000 0505 0000000000 000 ",1650757.66,1378565.64,272192.02]
["Расходы на выплаты персоналу в целях обеспечения выполнения функций государственными (муниципальными) органами, казенными учреждениями, органами управления государственными внебюджетными фондами","200","000 0505 0000000000 100 ",1250097.6599999999,1189975.94,60121.719999999972]
["Расходы на выплаты персоналу казенных учреждений","200","000 0505 0000000000 110 ",1250097.6599999999,1189975.94,60121.719999999972]
["Фонд оплаты труда учреждений","200","000 0505 0000000000 111 ",960174.11,918836.28,41337.829999999958]
["Взносы по обязательному социальному страхованию на выплаты по оплате труда работников и иные выплаты работникам учреждений","200","000 0505 0000000000 119 ",289923.55,271139.65999999997,18783.890000000014]
["Закупка товаров, работ и услуг для обеспечения государственных (муниципальных) нужд","200","000 0505 0000000000 200 ",400660,188589.7,{"$f":"IF(OR(D143=\"-\",IF(E143=\"-\",0,E143)>=IF(D143=\"-\",0,D143)),\"-\",IF(D143=\"-\",0,D143)-IF(E143=\"-\",0,E143))","v":212070.3}]
["Иные закупки товаров, работ и услуг для обеспечения государственных (муниципальных) нужд","200","000 0505 0000000000 240 ",400660,188589.7,212070.3]
["Прочая закупка товаров, работ и услуг для обеспечения государственных (муниципальных) нужд","200","000 0505 0000000000 244 ",400660,188589.7,212070.3]
["КУЛЬТУРА, КИНЕМАТОГРАФИЯ","200","000 0800 0000000000 000 ",18234000,18234000,"-"]
["Межбюджетные трансферты","200","000 0800 0000000000 500 ",18234000,18234000,"-"]
["Иные межбюджетные трансферты","200","000 0800 0000000000 540 ",18234000,18234000,"-"]
["Культура","200","000 0801 0000000000 000 ",18234000,18234000,"-"]
["Межбюджетные трансферты","200","000 0801 0000000000 500 ",18234000,18234000,"-"]
["Иные межбюджетные трансферты","200","000 0801 0000000000 540 ",18234000,18234000,"-"]
["ЗДРАВООХРАНЕНИЕ","200","000 0900 0000000000 000 ",42800,42560,240]
["Закупка товаров, работ и услуг для обеспечения государственных (муниципальных) нужд","200","000 0900 0000000000 200 ",42800,42560,240]
["Иные закупки товаров, работ и услуг для обеспечения государственных (муниципальных) нужд","200","000 0900 0000000000 240 ",42800,42560,240]
["Прочая закупка товаров, работ и услуг для обеспечения государственных (муниципальных) нужд","200","000 0900 0000000000 244 ",42800,42560,240]
["Другие вопросы в области здравоохранения","200","000 0909 0000000000 000 ",42800,42560,240]
["Закупка товаров, работ и услуг для обеспечения государственных (муниципальных) нужд","200","000 0909 0000000000 200 ",42800,42560,240]
["Иные закупки товаров, работ и услуг для обеспечения государственных (муниципальных) нужд","200","000 0909 0000000000 240 ",42800,42560,240]
["Прочая закупка товаров, работ и услуг для обеспечения государственных (муниципальных) нужд","200","000 0909 0000000000 244 ",42800,42560,240]
["СОЦИАЛЬНАЯ ПОЛИТИКА","200","000 1000 0000000000 000 ",110200,110200,"-"]
["Межбюджетные трансферты","200","000 1000 0000000000 500 ",110200,110200,"-"]
["Иные межбюджетные трансферты","200","000 1000 0000000000 540 ",110200,110200,"-"]
["Пенсионное обеспечение","200","000 1001 0000000000 000 ",110200,110200,"-"]
["Межбюджетные трансферты","200","000 1001 0000000000 500 ",110200,110200,"-"]
["Иные межбюджетные трансферты","200","000 1001 0000000000 540 ",110200,110200,"-"]
["ФИЗИЧЕСКАЯ КУЛЬТУРА И СПОРТ","200","000 1100 0000000000 000 ",2977200,2977200,"-"]
["Межбюджетные трансферты","200","000 1100 0000000000 500 ",2977200,2977200,"-"]
["Иные межбюджетные трансферты","200","000 1100 0000000000 540 ",2977200,2977200,"-"]
["Массовый спорт","200","000 1102 0000000000 000 ",2977200,2977200,"-"]
["Межбюджетные трансферты","200","000 1102 0000000000 500 ",2977200,2977200,"-"]
["Иные межбюджетные трансферты","200","000 1102 0000000000 540 ",2977200,2977200,"-"]
["МЕЖБЮДЖЕТНЫЕ ТРАНСФЕРТЫ ОБЩЕГО ХАРАКТЕРА БЮДЖЕТАМ БЮДЖЕТНОЙ СИСТЕМЫ РОССИЙСКОЙ ФЕДЕРАЦИИ","200","000 1400 0000000000 000 ",25633815.68,25633815.68,"-"]
["Межбюджетные трансферты","200","000 1400 0000000000 500 ",25633815.68,25633815.68,"-"]
["Иные межбюджетные трансферты","200","000 1400 0000000000 540 ",25633815.68,25633815.68,"-"]
["Прочие межбюджетные трансферты общего характера","200","000 1403 0000000000 000 ",25633815.68,25633815.68,{"$f":"IF(OR(D175=\"-\",IF(E175=\"-\",0,E175)>=IF(D175=\"-\",0,D175)),\"-\",IF(D175=\"-\",0,D175)-IF(E175=\"-\",0,E175))","v":"-"}]
["Межбюджетные трансферты","200","000 1403 0000000000 500 ",25633815.68,25633815.68,"-"]
["Иные межбюджетные трансферты","200","000 1403 0000000000 540 ",25633815.68,25633815.68,"-"]
[]
["Результат исполнения бюджета (дефицит / профицит)","450","x",-442207.86,1456746.84,"x                    "]

{"sheet":"Источники","index":2,"n_rows":22,"n_cols":6,"rows_kept":22,"cut":false,"hidden":false,"merged":[[1,0,1,5],[0,0,0,5],[3,0,9,0],[3,1,9,1],[3,3,9,3],[3,2,9,2],[3,4,9,4],[3,5,9,5]]}
["             Форма 0503127  с.3"]
["                    3. Источники финансирования дефицита бюджета"]
[]
[" Наименование показателя","Код строки","Код источника финансирования дефицита бюджета по бюджетной классификации","Утвержденные бюджетные назначения","Исполнено","Неисполненные назначения"]
[]
[]
[]
[]
[]
[]
[1,2,3,"4","5","6"]
["Источники финансирования дефицита бюджета - всего","500","x",442207.86,1456746.84,"x"]
["в том числе:",null,null,null,null,"-1 898 954,70"]
["источники внутреннего финансирования бюджета","520","x",442207.86,1456746.84,-1898954.7]
["из них:",null,null,"442 207,86","1 4567 46,84"]
["источники внешнего финансирования бюджета","620","x",442207.86,1456746.84,-1898954.7]
["из них:"]
["Изменение остатков средств","700","*** 01000000000000000",-442207.86,-1456746.84,-1898954.7]
["увеличение остатков средств, всего","710","000 01050000000000500",-80136915.519999996,-78742775.159999996,"x                    "]
["Увеличение прочих остатков денежных средств бюджетов сельских поселений","710","000 01050201100000510",-80136915.519999996,-78742775.159999996,"x                    "]
["уменьшение остатков средств, всего","720","000 01050000000000600",80579123.379999995,77286028.319999993,"x                    "]
["Уменьшение прочих остатков денежных средств бюджетов сельских поселений","720","000 01050201100000610",80579123.379999995,77286028.319999993,"x                    "]

{"sheet":"_params","index":3,"n_rows":10,"n_cols":2,"rows_kept":10,"cut":false,"hidden":true,"merged":[]}
["Доходы/EXPORT_SRC_KIND","5"]
["Доходы/FORM_CODE","117"]
["Доходы/REG_DATE","01.01.2018"]
["Доходы/RANGE_NAMES","1"]
["Доходы/EXPORT_PARAM_SRC_KIND","3"]
["Доходы/FinTexExportButtonView",""]
["Доходы/PARAMS",""]
["Доходы/FILE_NAME","C:\\UFK\\117Y01.txt"]
["Доходы/EXPORT_SRC_CODE","0ШВ"]
["Доходы/PERIOD","5"]